bitfinex-derivatives/quotes_BNBF0:USTF0_20250309
["timestamp","ask_amount","ask_price","bid_price","bid_amount"]
[1741478403273,0.33698399,593.5,592.65,4.589]
[1741478407370,0.31003315,593.49,592.65,4.589]
[1741478407569,0.33700102,593.47,592.65,4.589]
[1741478407976,0.31003315,593.46,592.65,4.589]
[1741478408177,0.33701806,593.44,592.65,4.589]
[1741478409582,0.31004765,593.43,592.65,4.589]
[1741478410380,0.33702942,593.42,592.65,4.589]
[1741478410585,0.31004765,593.41,592.65,4.589]
[1741478411185,0.33704078,593.4,592.65,4.589]
[1741478411580,0.31004765,593.39,592.65,4.589]
[1741478411780,0.33705214,593.38,592.65,4.589]
[1741478412087,0.31004765,593.37,592.65,4.589]
[1741478412381,0.3370635,593.36,592.65,4.589]
[1741478412790,0.31008655,593.35,592.65,4.589]
[1741478412987,0.33707486,593.34,592.65,4.589]
[1741478413183,0.31008655,593.33,592.65,4.589]
[1741478413380,0.33707486,593.34,592.65,4.589]
[1741478413585,0.31009786,593.33,592.65,4.589]
[1741478413785,0.31009786,593.33,592.65,4.57911055]
[1741478413986,0.33708622,593.32,592.65,3.719]
[1741478415287,0.31009553,593.31,592.65,3.719]
[1741478415489,0.33709758,593.3,592.65,3.719]
[1741478415990,0.31009553,593.29,592.65,3.719]
[1741478416190,0.33710895,593.28,592.65,3.719]
[1741478418693,0.33710895,593.28,592.65,2.873]
[1741478418890,0.33710895,593.28,592.65,1.922]
[1741478420193,0.33710895,593.28,592.65,0.615]
[1741478420495,0.31007572,593.27,592.65,0.615]
[1741478421395,0.33712031,593.26,592.65,0.615]
[1741478421790,0.31007572,593.25,592.35,0.713]
[1741478421994,0.33713736,593.23,592.35,0.713]
[1741478422196,0.31007572,593.22,592.35,0.713]
[1741478422395,0.33715441,593.2,592.35,0.713]
[1741478422590,0.31007572,593.19,592.35,0.713]
[1741478422789,0.33716578,593.18,592.35,0.713]
[1741478424500,0.3100794,593.17,592.35,0.713]
[1741478424901,0.33718283,593.15,592.35,0.713]
[1741478425098,0.3100794,593.14,592.35,0.713]
[1741478425293,0.3371942,593.13,592.35,0.713]
[1741478429603,0.31015443,593.12,592.35,0.713]
[1741478429799,0.33720557,593.11,592.35,0.713]
[1741478431202,0.31014314,593.1,592.35,0.713]
[1741478431507,0.33721694,593.09,592.35,0.713]
[1741478431708,0.31014314,593.08,592.35,0.713]
[1741478431906,0.33722832,593.07,592.35,0.713]
[1741478432201,0.31014314,593.06,592.35,0.713]
[1741478432407,0.33723969,593.05,592.35,0.713]
[1741478432902,0.31012481,593.04,592.35,0.713]
[1741478433101,0.33725106,593.03,592.35,0.713]
[1741478433302,0.31012481,593.02,592.35,0.713]
[1741478433500,0.33726244,593.01,592.35,0.713]
[1741478433704,0.31012481,593.0,592.35,0.713]
[1741478433903,0.33727381,592.99,592.35,0.713]
[1741478444109,0.33727381,592.99,592.36,1.043]
[1741478449111,0.33727381,592.99,592.37,0.879]
[1741478449411,0.33727381,592.99,592.38,0.725]
[1741478451917,0.32631328,592.99,592.38,0.725]
[1741478460328,0.32631328,592.99,592.39,0.873]
[1741478461830,0.32631328,592.99,592.4,0.783]
[1741478463932,0.32631328,592.99,592.4,1.666]
[1741478465937,0.32631328,592.99,592.4,2.429]
[1741478469737,0.32631328,592.99,592.4,3.154]
[1741478472641,0.32631328,592.99,592.4,4.389]
[1741478477846,0.29366097,592.98,592.4,4.389]
[1741478478041,0.33728519,592.97,592.4,4.389]
[1741478480243,0.29366469,592.96,592.4,4.389]
[1741478482050,0.33728519,592.97,592.4,4.389]
[1741478482342,0.33728519,592.97,592.4,5.517]
[1741478483242,0.29366841,592.96,592.4,5.517]
[1741478483546,0.33729656,592.95,592.4,5.517]
[1741478486242,0.29366717,592.94,592.4,5.517]
[1741478486443,0.33730794,592.93,592.4,5.517]
[1741478489350,0.29367956,592.92,592.4,5.517]
[1741478489551,0.33731932,592.91,592.4,5.517]
[1741478492551,0.33731932,592.91,592.4,6.66]
[1741478495157,0.29366097,592.9,592.4,6.66]
[1741478496259,0.3373307,592.89,592.4,6.66]
[1741478496656,0.3373307,592.89,592.4,4.289]
[1741478497450,0.3373307,592.89,592.4,3.161]
[1741478498253,0.29365602,592.88,592.4,3.161]
[1741478498458,0.33734208,592.87,592.4,3.161]
[1741478500954,0.29367213,592.86,592.4,3.161]
[1741478501154,0.33735346,592.85,592.4,3.161]
[1741478502558,0.33735346,592.85,592.4,1.926]
[1741478502864,0.33735346,592.85,592.4,1.143]
[1741478506370,0.29366717,592.84,592.4,1.143]
[1741478507164,0.33736484,592.83,592.4,1.143]
[1741478510265,0.29367336,592.82,592.4,1.143]
[1741478510470,0.33737622,592.81,592.4,1.143]
[1741478511570,0.33737622,592.81,592.37,4.074]
[1741478512368,0.2937155,592.8,592.37,4.074]
[1741478515283,0.33737622,592.81,592.37,4.074]
[1741478515573,0.29371674,592.79,592.37,4.074]
[1741478518075,0.33737622,592.81,592.37,4.074]
[1741478518480,0.29371674,592.78,592.37,4.074]
[1741478519377,0.33739899,592.77,592.37,4.074]
[1741478519977,0.33739899,592.77,592.37,1.176]
[1741478521675,0.89946646,592.76,592.37,1.176]
[1741478521875,0.89946646,592.75,592.37,1.176]
[1741478522078,0.33739899,592.77,592.37,1.176]
[1741478522079,1.23688252,592.74,592.37,1.176]
[1741478522278,0.89946646,592.73,592.37,1.176]
[1741478522478,0.89946646,592.72,592.37,1.176]
[1741478522683,0.89946646,592.71,592.37,1.176]
[1741478522875,0.89946646,592.7,592.37,1.176]
[1741478523077,0.89946646,592.69,592.37,1.176]
[1741478523282,0.89946646,592.68,592.37,1.176]
[1741478523486,0.89946646,592.67,592.37,1.176]
[1741478523677,0.89946646,592.66,592.37,1.176]
[1741478523882,0.89946646,592.65,592.37,1.176]
[1741478524084,0.89946646,592.64,592.37,1.176]
[1741478524285,0.89946646,592.63,592.37,1.176]
[1741478524486,0.89946646,592.62,592.37,1.176]
[1741478524686,0.89946646,592.61,592.37,1.176]
[1741478524884,0.89946646,592.6,592.37,1.176]
[1741478525085,0.89946646,592.59,592.37,1.176]
[1741478525286,0.89946646,592.58,592.37,1.176]
[1741478525482,0.89946646,592.57,592.37,1.176]
[1741478525690,0.89946646,592.56,592.37,1.176]
[1741478525891,0.89946646,592.55,592.37,1.176]
[1741478526092,0.89946646,592.54,592.37,1.176]
[1741478526292,0.89946646,592.53,592.37,1.176]
[1741478526492,0.89946646,592.52,592.37,1.176]
[1741478526789,0.89946646,592.51,592.37,1.176]
[1741478527083,0.89946646,592.5,592.37,1.176]
[1741478527287,0.89946646,592.49,592.37,1.176]
[1741478527490,0.89946646,592.48,592.37,1.176]
[1741478527788,0.89946646,592.47,592.37,1.176]
[1741478527990,0.89946646,592.46,592.37,1.176]
[1741478528298,0.89946646,592.45,592.37,1.176]
[1741478528488,0.89946646,592.44,592.37,1.176]
[1741478528688,0.89946646,592.43,592.37,1.176]
[1741478528890,0.89946646,592.42,592.37,1.176]
[1741478529088,0.89946646,592.41,592.37,1.176]
[1741478529283,0.89946646,592.4,592.37,1.176]
[1741478529487,0.89946646,592.39,592.37,1.176]
[1741478529687,0.89946646,592.38,592.37,1.176]
[1741478529889,0.89831212,592.38,592.37,1.176]
[1741478535795,0.89831212,592.38,592.35,0.77]
[1741478536001,0.29379981,592.39,592.35,0.77]
[1741478536203,0.89767157,592.38,592.35,0.77]
[1741478536388,0.33742176,592.73,592.35,0.77]
[1741478536590,0.8975765,592.72,592.35,0.77]
[1741478536792,0.8975765,592.71,592.35,0.77]
[1741478536994,0.8975765,592.7,592.35,0.77]
[1741478537195,0.8975765,592.69,592.35,0.77]
[1741478537401,0.8975765,592.68,592.35,0.77]
[1741478537698,0.8975765,592.67,592.35,0.77]
[1741478537894,0.8975765,592.66,592.35,0.77]
[1741478538091,0.8975765,592.65,592.35,0.77]
[1741478538295,0.8975765,592.64,592.35,0.77]
[1741478538493,0.8975765,592.63,592.35,0.77]
[1741478538691,0.8975765,592.62,592.35,0.77]
[1741478538897,0.8975765,592.61,592.35,0.77]
[1741478539097,0.8975765,592.6,592.35,0.77]
[1741478539304,0.8975765,592.59,592.35,0.77]
[1741478539598,0.8975765,592.58,592.35,0.77]
[1741478539798,0.8975765,592.57,592.35,0.77]
[1741478539999,0.89750715,592.56,592.35,0.77]
[1741478540202,0.89750715,592.55,592.35,0.77]
[1741478540399,0.89750715,592.54,592.35,0.77]
[1741478540599,0.89750715,592.53,592.35,0.77]
[1741478540794,0.89750715,592.52,592.35,0.77]
[1741478541002,0.89750715,592.51,592.35,0.77]
[1741478541203,0.89750715,592.5,592.35,0.77]
[1741478541501,0.89750715,592.49,592.35,0.77]
[1741478541701,0.89750715,592.48,592.35,0.77]
[1741478541904,0.89750715,592.47,592.35,0.77]
[1741478542197,0.89750715,592.46,592.35,0.77]
[1741478542404,0.89750715,592.45,592.35,0.77]
[1741478542594,0.89750715,592.44,592.35,0.77]
[1741478542796,0.89750715,592.43,592.35,0.77]
[1741478543001,0.89750715,592.42,592.35,0.77]
[1741478543197,0.89750715,592.41,592.35,0.77]
[1741478543401,0.89750715,592.4,592.35,0.77]
[1741478543607,0.29378989,592.47,592.35,0.77]
[1741478543809,0.89732308,592.46,592.35,0.77]
[1741478544110,0.89732308,592.45,592.35,0.77]
[1741478544307,0.89732308,592.44,592.35,0.77]
[1741478544604,0.89732308,592.43,592.35,0.77]
[1741478544806,0.89732308,592.42,592.35,0.77]
[1741478545008,0.89732308,592.41,592.35,0.77]
[1741478545210,0.89732308,592.4,592.35,0.77]
[1741478545411,0.33742176,592.73,592.35,0.77]
[1741478545608,0.89731223,592.72,592.35,0.77]
[1741478545808,1.23474537,592.71,592.35,0.77]
[1741478545999,1.23475106,592.7,592.35,0.77]
[1741478546202,0.89731223,592.69,592.35,0.77]
[1741478546398,0.89731223,592.68,592.35,0.77]
[1741478546703,0.89731223,592.67,592.35,0.77]
[1741478546910,0.89731223,592.66,592.35,0.77]
[1741478547208,0.89731223,592.65,592.35,0.77]
[1741478547415,0.89731223,592.64,592.35,0.77]
[1741478547611,0.89731223,592.63,592.35,0.77]
[1741478547807,0.89731223,592.62,592.35,0.77]
[1741478548007,0.89731223,592.61,592.35,0.77]
[1741478548208,0.89724749,592.6,592.35,0.77]
[1741478548407,0.89724749,592.59,592.35,0.77]
[1741478548611,0.89724749,592.58,592.35,0.77]
[1741478548811,0.89724749,592.57,592.35,0.77]
[1741478549013,0.89724749,592.56,592.35,0.77]
[1741478549208,0.89724749,592.55,592.35,0.77]
[1741478549504,0.89724749,592.54,592.35,0.77]
[1741478549709,0.89724749,592.53,592.35,0.77]
[1741478549910,0.89724749,592.52,592.35,0.77]
[1741478550110,0.89724749,592.51,592.35,0.77]
[1741478550311,0.89724749,592.5,592.35,0.77]
[1741478550513,0.89724749,592.49,592.35,0.77]
[1741478550712,0.89724749,592.48,592.35,0.77]
[1741478551013,0.89724749,592.47,592.35,0.77]
[1741478551214,0.89724749,592.46,592.35,0.77]
[1741478551404,0.89724749,592.45,592.35,0.77]
[1741478551602,0.89724749,592.44,592.35,0.77]
[1741478551804,0.89724749,592.43,592.35,0.77]
[1741478552016,0.89724749,592.42,592.35,0.77]
[1741478552212,0.89719776,592.41,592.35,0.77]
[1741478552409,0.89719776,592.4,592.35,0.77]
[1741478552604,0.89719776,592.39,592.35,0.77]
[1741478552805,0.29379609,592.42,592.35,0.77]
[1741478553011,0.89714494,592.41,592.35,0.77]
[1741478553206,0.89714494,592.4,592.35,0.77]
[1741478553405,0.89716825,592.39,592.35,0.77]
[1741478553605,0.29379609,592.42,592.35,0.77]
[1741478553811,0.89716815,592.41,592.35,0.77]
[1741478554010,0.89716815,592.4,592.35,0.77]
[1741478554209,1.25612364,592.96,592.35,0.77]
[1741478554418,1.20738673,592.95,592.35,0.77]
[1741478554606,1.20738673,592.94,592.35,0.77]
[1741478554807,1.20738673,592.93,592.35,0.77]
[1741478555009,1.20738673,592.92,592.35,0.77]
[1741478555215,1.20738673,592.91,592.35,0.77]
[1741478555407,1.20738673,592.9,592.35,0.77]
[1741478555608,0.89718508,592.89,592.35,0.77]
[1741478555914,1.20739251,592.88,592.35,0.77]
[1741478556209,1.20739251,592.87,592.35,0.77]
[1741478556415,1.20739251,592.86,592.35,0.77]
[1741478556720,1.20739251,592.85,592.35,0.77]
[1741478556909,1.20739251,592.84,592.35,0.77]
[1741478557120,0.89718508,592.83,592.35,0.77]
[1741478557322,0.89718508,592.82,592.35,0.77]
[1741478557516,0.89718508,592.81,592.35,0.77]
[1741478557714,0.89718508,592.8,592.35,0.77]
[1741478557913,0.89718508,592.79,592.35,0.77]
[1741478558113,0.89718508,592.78,592.14,1.055]
[1741478558313,0.89718508,592.77,592.14,1.055]
[1741478558520,0.89718508,592.76,592.15,1.177]
[1741478558722,0.89718508,592.75,592.15,1.177]
[1741478559015,0.89718508,592.74,592.15,1.177]
[1741478559216,0.89718508,592.73,592.15,1.177]
[1741478559410,0.89718508,592.72,592.15,1.177]
[1741478559716,0.89718508,592.71,592.15,1.177]
[1741478559917,0.89718508,592.7,592.15,1.177]
[1741478560117,0.89718508,592.69,592.15,1.177]
[1741478560316,0.89718508,592.68,592.15,1.177]
[1741478560518,0.89718508,592.67,592.15,1.177]
[1741478560727,0.89718508,592.66,592.15,1.177]
[1741478560914,0.89718508,592.65,592.15,1.177]
[1741478561118,0.89718508,592.64,592.15,1.177]
[1741478561317,0.89718508,592.63,592.15,2.321]
[1741478561513,0.89718508,592.62,592.15,2.321]
[1741478561714,0.89718508,592.61,592.15,2.321]
[1741478561915,0.89718508,592.6,592.15,2.321]
[1741478562115,0.89718508,592.59,592.15,2.321]
[1741478562313,0.89718508,592.58,592.15,2.321]
[1741478562517,0.89718508,592.57,592.15,2.321]
[1741478562817,0.89718508,592.56,592.15,2.321]
[1741478563014,0.89718508,592.55,592.15,2.321]
[1741478563220,0.89718508,592.54,592.15,2.321]
[1741478563415,0.89718508,592.53,592.15,2.321]
[1741478563616,0.89718508,592.52,592.15,2.321]
[1741478563820,0.89718508,592.51,592.15,2.321]
[1741478564021,0.89718508,592.5,592.15,2.321]
[1741478564219,0.89718508,592.49,592.15,2.321]
[1741478564517,0.89718508,592.48,592.15,2.321]
[1741478564819,0.89718508,592.47,592.15,2.321]
[1741478565024,0.89718508,592.46,592.15,2.321]
[1741478565218,0.89718508,592.45,592.15,2.321]
[1741478565418,0.89718508,592.44,592.15,2.321]
[1741478565618,0.89718508,592.43,592.15,2.321]
[1741478565818,0.89718508,592.42,592.15,2.321]
[1741478566025,0.89718508,592.41,592.15,2.321]
[1741478566228,0.89718508,592.4,592.15,2.321]
[1741478566428,0.89718508,592.39,592.15,2.321]
[1741478566724,0.89718508,592.38,592.15,2.321]
[1741478566922,0.89718508,592.37,592.15,2.321]
[1741478567117,0.89718508,592.36,592.15,2.321]
[1741478567319,0.89718508,592.35,592.15,2.321]
[1741478567520,0.89718508,592.34,592.15,2.321]
[1741478567718,0.89718508,592.33,592.15,2.321]
[1741478567924,0.89718508,592.32,592.15,2.321]
[1741478568125,0.89718508,592.31,592.15,2.321]
[1741478568329,0.29385191,592.37,592.15,2.321]
[1741478568529,0.89661035,592.36,592.15,2.321]
[1741478568730,0.89661035,592.35,592.15,2.321]
[1741478569026,0.89661035,592.34,592.15,2.321]
[1741478569227,0.89661035,592.33,592.15,2.321]
[1741478569433,0.89661035,592.32,592.15,2.321]
[1741478569634,0.89661035,592.31,592.15,2.321]
[1741478569824,0.89661035,592.3,592.15,2.321]
[1741478570035,1.25612364,592.98,592.15,2.321]
[1741478570236,0.29386059,592.3,592.15,2.321]
[1741478570425,1.25612364,592.98,592.15,2.321]
[1741478570626,1.20694225,592.97,592.15,2.321]
[1741478570827,1.20694225,592.96,592.15,2.321]
[1741478571135,1.20694225,592.95,592.15,2.321]
[1741478571327,1.20694225,592.94,592.15,2.321]
[1741478571527,1.20694225,592.93,592.15,2.321]
[1741478571726,1.20694225,592.92,592.15,2.321]
[1741478571931,1.20694225,592.91,592.15,2.321]
[1741478572132,1.20694225,592.9,592.15,2.321]
[1741478572332,3.39290967,593.2,592.15,2.321]
[1741478572333,1.20694225,592.89,592.15,2.321]
[1741478572538,1.20694225,592.88,592.15,2.321]
[1741478572729,1.20694225,592.87,592.15,2.321]
[1741478572931,1.20694225,592.86,592.15,2.321]
[1741478573131,1.20694225,592.85,592.15,2.321]
[1741478573335,1.20694225,592.84,592.15,2.321]
[1741478573528,1.20694225,592.83,592.15,2.321]
[1741478573728,1.20694225,592.82,592.15,2.321]
[1741478573927,0.89669371,592.81,592.15,2.321]
[1741478574127,1.54432416,592.8,592.15,2.321]
[1741478574441,1.54432985,592.79,592.15,2.321]
[1741478574635,1.234087,592.78,592.15,2.321]
[1741478574837,0.89669371,592.77,592.15,2.321]
[1741478575136,1.23409839,592.76,592.15,2.321]
[1741478575338,0.89669371,592.75,592.15,2.321]
[1741478575539,0.89669371,592.74,592.15,2.321]
[1741478575730,0.33740468,592.76,592.15,2.321]
[1741478575731,0.89669371,592.73,592.15,2.321]
[1741478575927,0.89669371,592.72,592.15,2.321]
[1741478576234,0.89669371,592.71,592.15,2.321]
[1741478576429,0.29380601,592.72,592.15,2.321]
[1741478576430,0.89669371,592.7,592.15,2.321]
[1741478576635,0.89669371,592.69,592.15,2.321]
[1741478576835,0.89669371,592.68,592.15,2.321]
[1741478577039,0.89669371,592.67,592.15,2.321]
[1741478577234,0.89669371,592.66,592.15,2.321]
[1741478577538,0.89669371,592.65,592.15,2.321]
[1741478577743,0.89669371,592.64,592.15,2.321]
[1741478577937,0.89669371,592.63,592.15,2.321]
[1741478578129,0.89669371,592.62,592.15,2.321]
[1741478578333,0.89669371,592.61,592.15,2.321]
[1741478578630,0.89669371,592.6,592.15,1.144]
[1741478578834,0.89669371,592.59,592.15,1.144]
[1741478579030,0.33740468,592.76,592.15,1.144]
[1741478579031,0.89669371,592.58,592.15,1.144]
[1741478579236,0.89669371,592.57,592.15,1.144]
[1741478579533,0.89669371,592.56,592.15,1.144]
[1741478579732,0.89669371,592.55,592.15,1.144]
[1741478579937,0.89669371,592.54,592.15,1.144]
[1741478580237,0.89669371,592.53,592.15,1.144]
[1741478580438,0.89669371,592.52,592.15,1.144]
[1741478580639,0.89669371,592.51,592.15,1.144]
[1741478580837,0.89669371,592.5,592.15,1.144]
[1741478581035,0.89669371,592.49,592.15,1.144]
[1741478581240,0.89669371,592.48,592.15,1.144]
[1741478581440,0.89669371,592.47,592.15,1.144]
[1741478581638,0.89669371,592.46,592.15,1.144]
[1741478581843,0.89669371,592.45,592.15,1.144]
[1741478582142,0.89669371,592.44,592.15,1.144]
[1741478582342,0.89669371,592.43,592.15,1.144]
[1741478582543,0.89669371,592.42,592.15,1.144]
[1741478582744,0.89669371,592.41,592.15,1.144]
[1741478582945,0.89669371,592.4,592.15,1.144]
[1741478583145,0.89669371,592.39,592.15,1.144]
[1741478583344,0.89669371,592.38,592.15,1.144]
[1741478583540,0.89669371,592.37,592.15,1.144]
[1741478583740,0.89669371,592.36,592.15,1.144]
[1741478583940,0.89669371,592.35,592.15,1.144]
[1741478584140,0.89669371,592.34,592.15,1.144]
[1741478584444,0.89799251,592.33,592.15,1.144]
[1741478584640,0.29382834,592.4,592.15,1.144]
[1741478584842,0.89798597,592.39,592.15,1.144]
[1741478585045,0.89798597,592.38,592.15,1.144]
[1741478585348,0.89798597,592.37,592.15,1.144]
[1741478585543,0.89798597,592.36,592.15,1.144]
[1741478585740,0.89798597,592.35,592.15,1.144]
[1741478585941,0.29382834,592.4,592.15,1.144]
[1741478586161,0.89806005,592.39,592.15,1.144]
[1741478586447,0.89806005,592.38,592.15,1.144]
[1741478586647,0.89806005,592.37,592.15,1.144]
[1741478586859,0.89806005,592.36,592.15,1.144]
[1741478587041,0.89806005,592.35,592.15,1.144]
[1741478587243,0.89806005,592.34,592.15,1.144]
[1741478587446,0.89806005,592.33,592.15,1.144]
[1741478587641,0.89806005,592.32,592.15,1.144]
[1741478587845,0.89806005,592.31,592.15,1.144]
[1741478588148,0.2938271,592.4,592.15,1.144]
[1741478588446,0.89817206,592.39,592.15,1.144]
[1741478588747,0.89817206,592.38,592.15,1.144]
[1741478588947,0.89817206,592.37,592.15,1.144]
[1741478589245,0.89817206,592.36,592.15,1.144]
[1741478589451,0.89817206,592.35,592.15,1.144]
[1741478589642,0.89817206,592.34,592.15,1.144]
[1741478589842,0.89817206,592.33,592.15,1.144]
[1741478590049,0.89817206,592.32,592.15,1.144]
[1741478590243,0.33740468,592.76,592.15,1.144]
[1741478590443,0.29383578,592.38,592.15,1.144]
[1741478590647,0.89817134,592.37,592.15,1.144]
[1741478590846,0.89817134,592.36,592.15,1.144]
[1741478591044,0.89817134,592.35,592.15,1.144]
[1741478591247,0.89817134,592.34,592.15,1.144]
[1741478591444,0.89817134,592.33,592.15,1.144]
[1741478591644,0.89817134,592.32,592.15,1.144]
[1741478591846,0.2938333,592.38,592.15,1.144]
[1741478591847,0.89817134,592.31,592.15,1.144]
[1741478592054,0.2938333,592.38,592.15,1.144]
[1741478592350,0.89824605,592.37,592.15,1.144]
[1741478592546,0.89824605,592.36,592.15,1.144]
[1741478592750,0.89824605,592.35,592.15,1.144]
[1741478592949,0.89824605,592.34,592.15,1.144]
[1741478593150,0.89824605,592.33,592.15,1.144]
[1741478593352,0.89824605,592.32,592.15,1.144]
[1741478593550,0.89824605,592.31,592.15,1.144]
[1741478593751,0.89824605,592.3,592.15,1.144]
[1741478593953,0.89824605,592.29,592.15,1.144]
[1741478594144,0.33740468,592.76,592.15,1.144]
[1741478594345,0.29384074,592.38,592.15,1.144]
[1741478594549,0.89823432,592.37,592.15,1.144]
[1741478594750,0.89823432,592.36,592.15,1.144]
[1741478594954,0.89823432,592.35,592.15,1.144]
[1741478595155,0.89823432,592.34,592.15,1.144]
[1741478595354,0.89823432,592.33,592.15,1.144]
[1741478595550,0.89823432,592.32,592.15,1.144]
[1741478595750,0.89823432,592.31,592.15,1.144]
[1741478595951,0.89828607,592.3,592.15,1.144]
[1741478596154,0.33740468,592.76,592.15,1.144]
[1741478596454,0.2938395,592.38,592.15,1.144]
[1741478596654,0.89825439,592.37,592.15,1.144]
[1741478596849,0.89825439,592.36,592.15,1.144]
[1741478597055,0.89825439,592.35,592.15,1.144]
[1741478597251,0.89825439,592.34,592.15,1.144]
[1741478597450,0.89825439,592.33,592.15,1.144]
[1741478597661,0.89825439,592.32,592.15,1.144]
[1741478597859,0.89825439,592.31,592.15,1.144]
[1741478598057,0.89825439,592.3,592.15,1.144]
[1741478598257,0.29383206,592.38,592.15,1.144]
[1741478598458,0.89834526,592.37,592.15,1.144]
[1741478598759,0.89834526,592.36,592.15,1.144]
[1741478598959,0.89834526,592.35,592.15,1.144]
[1741478599158,0.89834526,592.34,592.15,1.144]
[1741478599361,0.89834526,592.33,592.15,1.144]
[1741478599570,0.89834526,592.32,592.15,1.144]
[1741478599768,0.89834526,592.31,592.15,1.144]
[1741478599967,0.33740468,592.76,592.15,1.144]
[1741478600167,0.89841283,592.75,592.15,1.144]
[1741478600367,0.89841283,592.74,592.15,1.144]
[1741478600568,0.89841283,592.73,592.15,1.144]
[1741478600769,0.89841283,592.72,592.15,1.144]
[1741478600971,0.89841283,592.71,592.15,1.144]
[1741478601168,0.89841283,592.7,592.15,1.144]
[1741478601466,0.89841283,592.69,592.15,1.144]
[1741478601667,0.89841283,592.68,592.15,1.144]
[1741478601867,0.89841283,592.67,592.15,1.144]
[1741478602169,0.89841283,592.66,592.15,1.144]
[1741478602371,0.89841283,592.65,592.15,1.144]
[1741478602560,0.89841283,592.64,592.15,1.144]
[1741478602773,0.89841283,592.63,592.15,1.144]
[1741478602961,0.89841283,592.62,592.15,1.144]
[1741478603162,0.89841283,592.61,592.15,1.144]
[1741478603360,0.89841283,592.6,592.15,1.144]
[1741478603560,0.89841283,592.59,592.15,1.144]
[1741478603766,0.29379857,592.62,592.15,1.144]
[1741478603767,0.89841283,592.58,592.15,1.144]
[1741478603969,0.89841283,592.57,592.15,1.144]
[1741478604166,0.89841283,592.56,592.15,1.144]
[1741478604361,0.89841283,592.55,592.15,1.144]
[1741478604673,0.89841283,592.54,592.15,1.144]
[1741478604868,0.89841283,592.53,592.15,1.144]
[1741478605065,0.89841283,592.52,592.15,1.144]
[1741478605367,0.89841283,592.51,592.02,0.81]
[1741478605568,0.89841283,592.5,592.02,0.81]
[1741478605764,0.89841283,592.49,592.02,0.81]
[1741478606063,0.89841283,592.48,592.02,0.81]
[1741478606263,0.89841283,592.47,592.02,0.81]
[1741478606473,0.29383206,592.48,592.02,0.81]
[1741478606474,0.89841283,592.46,592.02,0.81]
[1741478606770,0.89841283,592.45,592.02,0.81]
[1741478606968,0.89841283,592.44,592.02,0.81]
[1741478607270,0.89841283,592.43,592.02,0.81]
[1741478607469,0.89841283,592.42,592.02,0.81]
[1741478607669,0.89841283,592.41,592.02,0.81]
[1741478607869,0.89841283,592.4,592.02,0.81]
[1741478608069,0.89841283,592.39,592.02,0.81]
[1741478608277,0.89877718,592.38,592.02,0.81]
[1741478608566,0.89877718,592.37,592.02,0.81]
[1741478608769,0.89877718,592.36,592.02,0.81]
[1741478609070,0.89877718,592.35,592.02,0.81]
[1741478609276,0.89877718,592.34,592.02,0.81]
[1741478609468,0.89877718,592.33,592.02,0.81]
[1741478609670,0.89877718,592.32,592.02,0.81]
[1741478609866,0.89877718,592.31,592.02,0.81]
[1741478610069,0.89877718,592.3,592.02,0.81]
[1741478610264,0.89877718,592.29,592.02,0.81]
[1741478610468,0.89877718,592.28,592.02,0.81]
[1741478610675,0.89877718,592.27,592.02,0.81]
[1741478610870,0.89877718,592.26,592.02,0.81]
[1741478611070,0.89877718,592.25,592.02,0.81]
[1741478611271,0.89877718,592.24,592.02,0.81]
[1741478611572,0.89877718,592.23,592.02,0.81]